bitfinex/quotes_BTCUSD_20220115
["timestamp","ask_amount","ask_price","bid_price","bid_amount"]
[1642259214971,0.11583576,43205.0,43202.0,1.497304]
[1642259215571,0.05794976,43205.0,43202.0,1.497304]
[1642259215771,0.25822976,43205.0,43202.0,1.497304]
[1642259216671,0.31611676,43205.0,43202.0,1.497304]
[1642259217128,0.41611676,43205.0,43202.0,1.497304]
[1642259217928,0.40611676,43205.0,43202.0,1.497304]
[1642259218733,0.40611676,43205.0,43202.0,1.452204]
[1642259219131,0.26631949,43204.0,43202.0,1.452204]
[1642259220972,0.26631949,43204.0,43202.0,1.892708]
[1642259221571,0.26631949,43204.0,43202.0,1.892548]
[1642259221775,0.32421037,43204.0,43202.0,1.892548]
[1642259222173,0.42973454,43204.0,43202.0,1.892548]
[1642259222374,0.42421037,43204.0,43202.0,1.892548]
[1642259223576,0.1,43204.0,43202.0,1.847848]
[1642259223981,0.20583676,43205.0,43202.0,1.847848]
[1642259224379,0.10583676,43205.0,43202.0,1.847848]
[1642259224631,0.40412984,43205.0,43202.0,1.847848]
[1642259225030,0.50412984,43205.0,43202.0,1.847848]
[1642259225230,0.45624284,43205.0,43202.0,1.847848]
[1642259225429,0.15794976,43205.0,43202.0,1.847848]
[1642259226230,0.05794976,43205.0,43202.0,1.847848]
[1642259226430,0.05794976,43205.0,43203.0,0.25178099]
[1642259226636,0.05794976,43205.0,43204.0,1.2361]
[1642259226830,0.11583576,43205.0,43204.0,1.2361]
[1642259228034,0.05794976,43205.0,43204.0,1.2361]
[1642259228681,0.05794976,43205.0,43204.0,1.1913]
[1642259230483,0.05822028,43205.0,43204.0,1.1913]
[1642259233625,0.05822028,43205.0,43204.0,1.1466]
[1642259238772,0.05822028,43205.0,43204.0,1.1017]
[1642259241628,0.00033928,43205.0,43204.0,1.1017]
[1642259242029,0.00033928,43205.0,43204.0,1.476604]
[1642259242431,0.00033928,43205.0,43204.0,2.026604]
[1642259242726,0.00033928,43205.0,43204.0,1.476604]
[1642259242927,0.00033928,43205.0,43204.0,1.1017]
[1642259243126,0.00033928,43205.0,43204.0,1.476604]
[1642259243793,0.00033928,43205.0,43204.0,1.0571]
[1642259244586,0.00033928,43205.0,43204.0,3.008004]
[1642259244790,0.00033928,43205.0,43204.0,1.782004]
[1642259244987,0.00033928,43205.0,43204.0,3.008004]
[1642259245187,0.00033928,43205.0,43204.0,1.432004]
[1642259245388,0.00033928,43205.0,43204.0,1.832004]
[1642259246489,0.00033928,43205.0,43204.0,1.432004]
[1642259247136,0.00033928,43205.0,43204.0,2.658004]
[1642259247338,0.00033928,43205.0,43204.0,1.432004]
[1642259248635,0.00033928,43205.0,43204.0,1.387404]
[1642259249336,0.00033928,43205.0,43204.0,1.0125]
[1642259250339,0.65822128,43205.0,43204.0,1.0125]
[1642259250538,0.75822128,43205.0,43204.0,1.0125]
[1642259250975,1.13312528,43205.0,43204.0,1.0125]
[1642259251175,1.47130319,43205.0,43204.0,1.0125]
[1642259251777,0.87130319,43205.0,43204.0,1.0125]
[1642259252581,1.11769981,43205.0,43204.0,1.0125]
[1642259253578,0.72908566,43205.0,43204.0,1.0125]
[1642259253877,0.72908566,43205.0,43204.0,0.9678]
[1642259254731,0.8208153,43205.0,43204.0,0.9678]
[1642259254929,0.82845057,43205.0,43204.0,0.9678]
[1642259255328,1.03205395,43205.0,43204.0,0.9678]
[1642259255533,1.27830797,43205.0,43204.0,0.9678]
[1642259255830,0.82830797,43205.0,43204.0,0.9678]
[1642259257930,0.86587594,43205.0,43204.0,0.9678]
[1642259258594,0.82830797,43205.0,43204.0,0.9678]
[1642259258783,0.53485565,43205.0,43204.0,0.9231]
[1642259258983,0.15995165,43205.0,43204.0,0.9231]
[1642259259384,0.05995165,43205.0,43204.0,0.9231]
[1642259263324,0.45995165,43205.0,43204.0,0.9231]
[1642259263524,0.55995165,43205.0,43204.0,0.9231]
[1642259263724,1.10995165,43205.0,43204.0,0.8785]
[1642259263926,0.55995165,43205.0,43204.0,0.8785]
[1642259264124,0.15995165,43205.0,43204.0,0.8785]
[1642259265027,0.05995165,43205.0,43204.0,0.8785]
[1642259268878,0.85995165,43205.0,43204.0,0.8338]
[1642259269078,0.15995165,43205.0,43204.0,0.8338]
[1642259269278,0.60995165,43205.0,43204.0,0.8338]
[1642259270131,0.15995165,43205.0,43204.0,0.8338]
[1642259270632,0.05995165,43205.0,43204.0,0.8338]
[1642259272132,0.65995165,43205.0,43204.0,0.8338]
[1642259272528,0.75995165,43205.0,43204.0,0.8338]
[1642259273877,0.75995165,43205.0,43204.0,0.7892]
[1642259274076,1.13485565,43205.0,43204.0,0.7892]
[1642259274277,2.16760253,43205.0,43204.0,0.325983]
[1642259274478,2.17683448,43205.0,43204.0,0.325983]
[1642259274877,1.40790338,43204.0,43202.0,0.881008]
[1642259275079,2.08950907,43203.0,43202.0,0.881008]
[1642259275279,2.09537568,43203.0,43202.0,0.881008]
[1642259275479,2.46713391,43203.0,43202.0,0.417775]
[1642259275680,0.70077661,43203.0,43202.0,0.417775]
[1642259276680,1.35077661,43203.0,43202.0,0.36953891]
[1642259277130,0.70077661,43203.0,43202.0,0.36953891]
[1642259277533,0.70077661,43203.0,43202.0,1.06393891]
[1642259277830,1.40077661,43203.0,43202.0,0.60070291]
[1642259278232,0.70077661,43203.0,43202.0,0.60070291]
[1642259278830,1.60077661,43203.0,43202.0,0.55610291]
[1642259279031,1.60077661,43203.0,43202.0,0.49487013]
[1642259279231,0.70077661,43203.0,43202.0,0.49487013]
[1642259280133,1.45077661,43203.0,43202.0,0.44659942]
[1642259280334,0.70077661,43203.0,43202.0,0.44659942]
[1642259280534,0.93458533,43203.0,43202.0,0.44659942]
[1642259283876,0.93458533,43203.0,43202.0,0.40199942]
[1642259285335,0.70077661,43203.0,43202.0,0.40199942]
[1642259285534,0.91708513,43203.0,43202.0,0.40199942]
[1642259285934,0.70077661,43203.0,43202.0,0.40199942]
[1642259287140,0.91771314,43203.0,43202.0,0.40199942]
[1642259287735,0.70077661,43203.0,43202.0,0.40199942]
[1642259288392,0.91712738,43203.0,43202.0,0.40199942]
[1642259288795,1.26712738,43203.0,43202.0,0.35729942]
[1642259288994,3.56712738,43203.0,43202.0,0.24768486]
[1642259289198,2.757912,43201.0,43200.0,0.00620674]
[1642259289395,0.00127873,43190.0,43182.0,0.00647701]
[1642259289594,0.00127873,43190.0,43183.0,0.69467]
[1642259289595,0.115833,43187.0,43183.0,0.69467]
[1642259289796,0.0463,43186.0,43183.0,0.69467]
[1642259289994,0.0463,43186.0,43184.0,0.00036099]
[1642259290193,0.104217,43186.0,43185.0,0.69469]
[1642259290593,0.104217,43186.0,43185.0,0.6950338]
[1642259290795,0.162131,43186.0,43185.0,0.6950338]
[1642259292327,0.162131,43186.0,43185.0,0.6900338]
[1642259292729,0.38532897,43186.0,43185.0,0.6900338]
[1642259292930,1.31023297,43186.0,43185.0,0.6900338]
[1642259293129,1.187035,43186.0,43185.0,0.6900338]
[1642259293529,1.987035,43186.0,43185.0,0.2266238]
[1642259293731,1.187035,43186.0,43185.0,0.2266238]
[1642259293937,1.05,43185.0,43182.0,0.00647701]
[1642259294130,1.482834,43183.0,43182.0,0.00647701]
[1642259294333,1.58834191,43183.0,43182.0,0.00647701]
[1642259294530,1.69481782,43183.0,43182.0,0.70120701]
[1642259294731,0.64481782,43183.0,43182.0,0.70120701]
[1642259294931,1.04481782,43183.0,43182.0,0.70120701]
[1642259295131,0.64353904,43183.0,43182.0,0.55982452]
[1642259295333,0.64353265,43183.0,43182.0,0.23775901]
[1642259295532,0.63705674,43183.0,43182.0,0.23775901]
[1642259295786,0.64210694,43183.0,43182.0,0.23775901]
[1642259297391,0.86971274,43183.0,43182.0,0.23775901]
[1642259298792,0.86971274,43183.0,43182.0,0.19305901]
[1642259299829,0.86466254,43183.0,43182.0,0.19305901]
[1642259300627,0.8658959,43183.0,43182.0,0.19305901]
[1642259301227,0.70797316,43183.0,43182.0,0.19305901]
[1642259301431,0.48036736,43183.0,43182.0,0.19305901]
[1642259301935,0.48036736,43183.0,43182.0,0.18771081]
[1642259303131,0.58036736,43183.0,43182.0,0.18771081]
[1642259303885,0.53406736,43183.0,43182.0,0.14301081]
[1642259306684,0.75662022,43183.0,43182.0,0.14301081]
[1642259307127,0.53406736,43183.0,43182.0,0.14301081]
[1642259308925,1.01305415,43183.0,43182.0,0.09781081]
[1642259310527,1.01945472,43183.0,43182.0,0.09781081]
[1642259311290,0.91945472,43183.0,43182.0,0.09781081]
[1642259311489,1.01945472,43183.0,43182.0,0.09781081]
[1642259311991,1.06575472,43183.0,43182.0,0.09781081]
[1642259313989,1.06575472,43183.0,43182.0,0.05291081]
[1642259314830,0.96575472,43183.0,43182.0,0.05291081]
[1642259315034,1.06575472,43183.0,43182.0,0.05291081]
[1642259316030,0.58676793,43183.0,43182.0,0.05291081]
[1642259316230,0.48553457,43183.0,43182.0,0.05291081]
[1642259317634,0.80385868,43183.0,43182.0,0.05291081]
[1642259318881,0.80385868,43183.0,43182.0,0.00811081]
[1642259322527,0.80385868,43183.0,43172.0,0.3036]
[1642259322528,0.057931,43181.0,43172.0,0.3036]
[1642259322731,0.057931,43176.0,43172.0,0.3036]
[1642259322930,0.26745509,43175.0,43173.0,0.00020628]
[1642259323327,0.26745509,43175.0,43172.0,0.00022347]
[1642259323527,0.26745509,43175.0,43170.0,0.00025785]
[1642259323928,0.32539017,43175.0,43169.0,0.39606185]
[1642259324127,0.42539017,43175.0,43169.0,0.39606185]
[1642259324327,0.05800276,43174.0,43169.0,0.39606185]
[1642259324530,0.0463,43173.0,43169.0,0.39606185]
[1642259324728,0.115861,43172.0,43170.0,0.69491]
[1642259328687,0.0463,43171.0,43170.0,0.69491]
[1642259329087,0.0463,43171.0,43170.0,0.65021]
[1642259334083,0.0463,43171.0,43170.0,0.60541]
[1642259338435,0.05793,43172.0,43170.0,0.60541]
[1642259339032,0.05793,43172.0,43170.0,0.56071]
[1642259341580,6.876e-05,43174.0,43170.0,0.56071]
[1642259343384,6.876e-05,43174.0,43173.0,0.24354678]
[1642259343582,6.876e-05,43174.0,43173.0,1.07262678]
[1642259343984,6.876e-05,43174.0,43173.0,1.44753078]
[1642259344182,6.876e-05,43174.0,43173.0,1.40253078]
[1642259344381,6.876e-05,43174.0,43173.0,1.75253078]
[1642259344651,6.876e-05,43174.0,43173.0,1.40253078]
[1642259344836,6.876e-05,43174.0,43173.0,1.02762678]
[1642259345434,6.876e-05,43174.0,43173.0,1.23189536]
[1642259350688,6.876e-05,43174.0,43173.0,0.82908]
[1642259352029,0.05799276,43174.0,43173.0,0.82908]
[1642259352636,6.876e-05,43174.0,43173.0,0.82908]
[1642259354228,6.876e-05,43174.0,43173.0,0.78428]
[1642259359386,6.876e-05,43174.0,43173.0,0.73968]
[1642259364387,6.876e-05,43174.0,43173.0,0.69478]
[1642259366194,0.21487992,43174.0,43173.0,0.69478]
[1642259366592,6.876e-05,43174.0,43173.0,0.69478]
[1642259367240,0.21494089,43174.0,43173.0,0.69478]
[1642259367440,6.876e-05,43174.0,43173.0,0.69478]
[1642259367640,0.21005425,43174.0,43173.0,0.69478]
[1642259368443,0.25635425,43174.0,43173.0,0.69478]
[1642259368644,2.18712486,43174.0,43173.0,0.231236]
[1642259369042,2.28837599,43174.0,43173.0,0.231236]
[1642259369349,2.274904,43170.0,43169.0,0.35106185]
[1642259369545,2.771204,43170.0,43169.0,0.35106185]
[1642259369745,0.374904,43166.0,43159.0,0.9093]
[1642259369944,0.00127965,43160.0,43159.0,0.9093]
[1642259370145,0.05177364,43165.0,43160.0,0.0001719]
[1642259370345,0.33686383,43165.0,43160.0,0.0001719]
[1642259370544,0.057956,43164.0,43160.0,0.0001719]
[1642259370981,0.057956,43164.0,43161.0,0.69506]
[1642259370982,0.0463,43163.0,43161.0,0.69506]
[1642259371382,0.0463,43163.0,43162.0,0.00013752]
[1642259371583,0.0463,43163.0,43162.0,0.69519752]
[1642259374388,0.0463,43163.0,43162.0,0.65009752]
[1642259379384,0.0463,43163.0,43162.0,0.60529752]
[1642259380986,0.40650145,43163.0,43162.0,0.60529752]
[1642259381186,0.20046,43165.0,43162.0,0.60529752]
[1642259381387,0.1,43166.0,43162.0,0.60529752]
[1642259381589,0.00123954,43168.0,43162.0,0.60529752]
[1642259382031,8.595e-05,43167.0,43162.0,0.60529752]
[1642259382235,0.057936,43165.0,43162.0,0.87776911]
[1642259382435,0.057936,43165.0,43162.0,0.60529752]
[1642259383435,0.2539696,43164.0,43162.0,0.60529752]
[1642259383636,1.06722143,43163.0,43162.0,0.60529752]
[1642259383836,1.11626189,43163.0,43162.0,0.60529752]
[1642259384034,1.63746589,43163.0,43162.0,0.60529752]
[1642259384435,1.63746589,43163.0,43162.0,0.56059752]
[1642259384634,0.73746589,43163.0,43162.0,0.56059752]
[1642259386185,0.7474799,43163.0,43162.0,0.56059752]
[1642259387385,0.74875954,43163.0,43162.0,0.56059752]
[1642259389631,0.74875954,43163.0,43162.0,0.51599752]
[1642259390039,1.84875954,43163.0,43162.0,0.06599752]
[1642259390232,1.474904,43162.0,43149.0,1.77493112]
[1642259390439,0.05795871,43155.0,43149.0,1.77493112]
[1642259390633,0.057959,43154.0,43150.0,0.00020628]
[1642259390933,0.057959,43154.0,43149.0,0.92440628]
[1642259391136,0.057959,43154.0,43148.0,0.86711897]
[1642259391334,0.00124789,43156.0,43148.0,0.27336883]
[1642259391335,0.28309043,43155.0,43148.0,0.27336883]
[1642259391534,0.28309043,43155.0,43148.0,0.62445199]
[1642259391734,6.876e-05,43154.0,43148.0,0.62445199]
[1642259393700,6.876e-05,43154.0,43149.0,0.69523]
[1642259394097,0.057952,43153.0,43149.0,0.69523]
[1642259394296,6.876e-05,43154.0,43149.0,0.69523]
[1642259395100,0.05801976,43154.0,43149.0,0.69523]
[1642259400536,6.876e-05,43154.0,43149.0,0.69523]
[1642259404533,0.05801976,43154.0,43149.0,0.69523]
[1642259407733,0.05801976,43154.0,43149.0,0.6921783]
[1642259408282,0.33322071,43151.0,43149.0,0.6921783]
[1642259408682,0.43322071,43151.0,43149.0,0.6921783]
[1642259411485,0.37526671,43151.0,43149.0,0.6921783]
[1642259411786,0.1,43151.0,43149.0,0.6921783]
[1642259412030,0.057952,43153.0,43149.0,0.6921783]
[1642259412634,0.30534462,43153.0,43149.0,0.6921783]
[1642259413134,0.40534462,43153.0,43149.0,0.6921783]
[1642259415337,0.40546462,43153.0,43149.0,0.6921783]
[1642259421942,0.057961,43152.0,43149.0,0.6921783]
[1642259422141,0.11592,43151.0,43149.0,0.6921783]
[1642259422536,0.057959,43151.0,43149.0,0.6921783]
[1642259424383,0.0463,43150.0,43149.0,0.6921783]
[1642259424584,0.0463,43150.0,43149.0,0.6473783]
[1642259429637,0.0463,43150.0,43149.0,0.6023783]
[1642259430137,0.04636,43150.0,43149.0,0.6023783]
[1642259430338,0.04642,43150.0,43149.0,0.6023783]
[1642259431783,0.26199438,43150.0,43149.0,0.6023783]
[1642259432784,0.04642,43150.0,43149.0,0.6023783]
[1642259434287,0.00012,43150.0,43149.0,0.6023783]
[1642259436535,0.030079,43151.0,43149.0,0.6023783]
[1642259437538,6.876e-05,43154.0,43149.0,0.6023783]
[1642259438792,0.057952,43153.0,43149.0,0.6023783]
[1642259439589,0.057952,43153.0,43152.0,0.24124239]
[1642259439788,6.876e-05,43154.0,43152.0,1.02931239]
[1642259441191,6.876e-05,43154.0,43153.0,1.27292162]
[1642259441391,6.876e-05,43154.0,43153.0,2.51293562]
[1642259444845,6.876e-05,43154.0,43153.0,3.73893562]
[1642259445046,6.876e-05,43154.0,43153.0,3.79686462]
[1642259445247,6.876e-05,43154.0,43153.0,3.84316462]
[1642259445446,6.876e-05,43154.0,43153.0,3.94316462]
[1642259446198,8.76e-06,43154.0,43153.0,4.71181722]
[1642259446400,8.76e-06,43154.0,43153.0,3.66181722]
[1642259446799,8.76e-06,43154.0,43153.0,4.15556736]
[1642259446998,8.76e-06,43154.0,43153.0,4.25556736]
[1642259447398,8.76e-06,43154.0,43153.0,4.43699736]
[1642259447599,8.76e-06,43154.0,43153.0,4.23699736]
[1642259447997,8.76e-06,43154.0,43153.0,4.63459226]
[1642259448199,8.76e-06,43154.0,43153.0,5.32730076]
[1642259448399,8.76e-06,43154.0,43153.0,5.42730076]
[1642259448598,8.76e-06,43154.0,43153.0,5.52730076]
[1642259448799,8.76e-06,43154.0,43153.0,5.42730076]
[1642259450039,8.76e-06,43154.0,43153.0,5.32730076]
[1642259450242,8.76e-06,43154.0,43153.0,5.24587076]
[1642259451442,8.76e-06,43154.0,43153.0,5.34587076]
[1642259451741,8.76e-06,43154.0,43153.0,5.24587076]
[1642259451948,0.05293376,43173.0,43169.0,0.20467914]
[1642259452148,0.374904,43172.0,43170.0,0.78778]
[1642259452347,0.00030942,43172.0,43170.0,0.78778]
[1642259452542,0.05293376,43173.0,43170.0,0.78778]
[1642259453396,0.1,43176.0,43170.0,0.78778]
[1642259453600,0.3042,43178.0,43170.0,0.78778]
[1642259453996,6.876e-05,43176.0,43170.0,0.78778]
[1642259454197,0.10006876,43176.0,43170.0,0.78778]
[1642259454397,0.057923,43175.0,43170.0,0.78778]
[1642259459636,0.057923,43175.0,43170.0,0.78278]
[1642259460536,0.32407917,43174.0,43170.0,0.78278]
[1642259460992,0.42407917,43174.0,43170.0,0.78278]
[1642259462993,0.1,43174.0,43170.0,0.78278]
[1642259463394,6.876e-05,43176.0,43170.0,0.78278]
[1642259464642,0.1054917,43175.0,43170.0,0.78278]
[1642259464942,0.24267936,43174.0,43170.0,0.73798]
[1642259465144,2.55974657,43173.0,43170.0,0.73798]
[1642259465338,1.574904,43171.0,43170.0,0.73798]
[1642259465539,0.474904,43171.0,43170.0,0.73798]
[1642259466849,0.33725207,43171.0,43170.0,0.73798]
[1642259467044,0.23725207,43171.0,43170.0,0.73798]
[1642259467245,0.33725207,43171.0,43170.0,0.73798]
[1642259468493,0.23725207,43171.0,43170.0,0.73798]
[1642259468692,0.1,43171.0,43170.0,0.73798]
[1642259469693,0.42956821,43172.0,43170.0,0.73798]
[1642259469893,0.47586821,43172.0,43170.0,0.69328]
[1642259470299,0.924904,43171.0,43170.0,0.69328]
[1642259470495,0.374904,43171.0,43170.0,0.69328]
[1642259470694,0.474904,43171.0,43170.0,0.69328]
[1642259472242,0.1,43171.0,43170.0,0.69328]
[1642259472642,0.59175204,43172.0,43170.0,0.69328]
[1642259472847,1.024904,43171.0,43170.0,0.69328]
[1642259473044,0.474904,43171.0,43170.0,0.69328]
[1642259474844,0.474904,43171.0,43170.0,0.64868]
[1642259475046,0.1,43171.0,43170.0,0.64868]
[1642259475246,0.05794,43172.0,43170.0,0.64868]
[1642259475455,0.0012687,43175.0,43170.0,0.64868]
[1642259475456,0.057922,43175.0,43170.0,0.64868]
[1642259475895,0.057922,43175.0,43171.0,0.27531696]
[1642259476099,0.057922,43175.0,43172.0,0.92684]
[1642259477196,0.01151,43174.0,43172.0,0.92684]
[1642259479851,0.01151,43174.0,43172.0,0.88214]
[1642259481753,0.01151,43175.0,43172.0,0.88214]
[1642259482457,0.057917,43179.0,43172.0,0.88214]
[1642259483494,0.057917,43179.0,43176.0,0.33193435]
[1642259483694,0.057917,43179.0,43178.0,0.20532758]
[1642259483893,0.057917,43179.0,43178.0,1.17677758]
[1642259484893,0.057917,43179.0,43178.0,1.13207758]
[1642259485595,0.432821,43179.0,43178.0,1.13207758]
[1642259486096,0.53868761,43179.0,43178.0,1.13207758]
[1642259488147,0.53868761,43179.0,43178.0,0.97145]
[1642259489949,0.53868761,43179.0,43178.0,0.92685]
[1642259491099,0.53868761,43179.0,43178.0,0.92427587]
[1642259492492,0.532821,43179.0,43178.0,0.92427587]
[1642259495048,0.532821,43179.0,43178.0,0.93844587]
[1642259497152,0.532821,43179.0,43178.0,1.17484385]
[1642259497153,0.432821,43179.0,43178.0,1.17484385]
[1642259497350,6.876e-05,43180.0,43178.0,0.93844587]
[1642259499989,6.876e-05,43180.0,43178.0,0.89374587]
[1642259500393,0.374904,43179.0,43178.0,0.89374587]
[1642259500590,0.474904,43179.0,43178.0,0.89374587]
[1642259504948,0.474904,43179.0,43178.0,0.84904587]
[1642259510049,0.474904,43179.0,43178.0,0.80414587]
[1642259514192,3.174904,43179.0,43178.0,0.24768486]
[1642259514397,0.05907,43174.0,43162.0,1.8727]
[1642259514593,0.00126969,43169.0,43162.0,0.9232]
[1642259514794,0.05907,43167.0,43163.0,0.00022347]
[1642259514994,0.05907,43165.0,43159.0,0.54579126]
[1642259515194,0.05907,43163.0,43159.0,0.81412125]
[1642259515394,0.10537,43163.0,43159.0,0.81412125]
[1642259515592,0.10537,43163.0,43159.0,0.26832999]
[1642259516392,0.10537,43163.0,43160.0,0.69507]
[1642259520052,0.10537,43163.0,43160.0,0.65027]
[1642259521308,0.10537,43163.0,43160.0,0.96109782]
[1642259525046,0.10537,43163.0,43160.0,0.91649782]
[1642259525850,0.05907,43162.0,43161.0,0.60936378]
[1642259526249,0.05907,43162.0,43161.0,2.374904]
[1642259526449,0.05907,43162.0,43161.0,3.159374]
[1642259526952,0.05907,43162.0,43161.0,1.40774788]
[1642259528398,0.05907,43162.0,43161.0,1.90774788]
[1642259529701,0.05907,43162.0,43161.0,1.40774788]
[1642259530299,0.05907,43162.0,43161.0,1.70774788]
[1642259530900,6.876e-05,43167.0,43166.0,0.2942558]
[1642259531100,6.876e-05,43167.0,43166.0,1.0786458]
[1642259532244,0.05834767,43168.0,43167.0,0.45]
[1642259532448,0.05834767,43168.0,43167.0,0.78438]
[1642259537097,0.05834767,43170.0,43167.0,0.78438]
[1642259537600,0.05834767,43170.0,43168.0,0.35994356]
[1642259537796,0.05834767,43170.0,43169.0,0.78434]
[1642259540248,0.05834767,43170.0,43169.0,0.73924]
[1642259542146,0.05834767,43173.0,43169.0,0.73924]
[1642259542544,0.05845081,43173.0,43169.0,0.73924]
[1642259545199,0.05845081,43173.0,43169.0,0.69454]
[1642259547548,0.05834767,43172.0,43169.0,0.69454]
[1642259547953,6.876e-05,43171.0,43169.0,0.69454]
[1642259551304,0.05834767,43170.0,43169.0,0.69454]
[1642259551900,0.26100698,43170.0,43169.0,0.69454]
[1642259552400,0.63591098,43170.0,43169.0,0.69454]
[1642259552600,0.73591098,43170.0,43169.0,0.69454]
[1642259553001,0.36100698,43170.0,43169.0,0.69454]
[1642259553205,0.15834767,43170.0,43169.0,0.69454]
[1642259553704,0.05834767,43170.0,43169.0,0.69454]
[1642259556446,0.26319522,43170.0,43169.0,0.69454]
[1642259557346,0.05834767,43170.0,43169.0,0.69454]
[1642259557546,6.876e-05,43171.0,43169.0,0.69454]
[1642259557744,0.05841643,43171.0,43169.0,0.69454]
[1642259560315,0.05841643,43171.0,43169.0,0.95931359]
[1642259561616,0.05841643,43171.0,43169.0,1.13976403]
[1642259562648,6.876e-05,43171.0,43169.0,1.13976403]
[1642259568406,6.876e-05,43171.0,43170.0,1.824904]
[1642259568609,6.876e-05,43171.0,43170.0,3.050904]
[1642259568803,6.876e-05,43171.0,43170.0,3.925034]
[1642259569003,6.876e-05,43171.0,43170.0,2.699034]
[1642259569851,6.876e-05,43171.0,43170.0,3.925034]
[1642259570453,6.876e-05,43171.0,43170.0,2.699034]
[1642259570956,6.876e-05,43171.0,43170.0,1.249034]
[1642259571753,6.876e-05,43171.0,43170.0,1.599034]
[1642259571956,6.876e-05,43171.0,43170.0,1.249034]
[1642259573707,6.876e-05,43171.0,43170.0,1.649034]
[1642259574104,6.876e-05,43171.0,43170.0,1.249034]
[1642259576610,6.876e-05,43171.0,43170.0,2.475034]
[1642259577853,6.876e-05,43171.0,43170.0,1.249034]
[1642259578050,6.876e-05,43171.0,43170.0,2.475034]
[1642259585853,6.876e-05,43171.0,43170.0,1.249034]
[1642259586756,6.876e-05,43171.0,43170.0,2.475034]
[1642259587753,0.05834767,43175.0,43171.0,0.44043524]
[1642259587954,0.05834767,43175.0,43172.0,0.87409]
[1642259588703,0.05834767,43175.0,43173.0,0.374904]
[1642259589002,0.05834767,43175.0,43174.0,0.87406]
[1642259589407,0.05841643,43175.0,43174.0,0.87406]
[1642259589603,0.05841643,43175.0,43174.0,1.18555425]
[1642259589803,0.05841643,43175.0,43174.0,1.56045825]
[1642259591104,6.876e-05,43175.0,43174.0,1.56045825]
[1642259592158,8.76e-06,43175.0,43174.0,2.93402227]
[1642259592359,8.76e-06,43175.0,43174.0,3.03402227]
[1642259592659,0.05834767,43181.0,43174.0,3.03402227]
[1642259592859,0.05834767,43181.0,43180.0,0.00128201]
[1642259593056,0.05834767,43181.0,43180.0,4.13449231]
[1642259593257,0.05834767,43181.0,43180.0,5.36049231]
[1642259593458,0.0005336,43193.0,43182.0,1.226]
[1642259593659,0.0005336,43193.0,43183.0,1.354194]
[1642259593859,0.00029223,43192.0,43187.0,0.05907]
[1642259594061,0.001,43199.0,43193.0,0.06035545]
[1642259594062,0.001,43196.0,43193.0,0.06035545]
[1642259594259,0.001,43196.0,43195.0,1.28629237]
[1642259594464,0.001,43196.0,43195.0,2.58121637]
[1642259594658,0.00106876,43196.0,43195.0,2.58121637]
[1642259596816,0.001,43199.0,43195.0,2.58121637]
[1642259596817,0.001,43198.0,43195.0,2.58121637]
[1642259597020,0.67680649,43202.0,43201.0,0.05907]
[1642259597218,0.67680649,43202.0,43201.0,0.9327]
[1642259597418,0.00015471,43205.0,43201.0,0.9327]
[1642259597820,0.00013752,43204.0,43201.0,0.9327]
[1642259598120,0.67492363,43205.0,43203.0,0.05907]
[1642259598319,0.67492363,43205.0,43204.0,0.93265]
[1642259598521,0.67507834,43205.0,43204.0,0.93265]
[1642259598719,0.00015471,43205.0,43204.0,0.93265]
[1642259598920,0.6706085,43205.0,43204.0,0.93265]
[1642259599122,0.7706085,43205.0,43204.0,0.93265]
[1642259599662,0.8863835,43205.0,43204.0,0.93265]
[1642259599856,1.2612875,43205.0,43204.0,0.93265]
[1642259600657,1.2612875,43205.0,43204.0,0.88805]
[1642259601459,1.1455125,43205.0,43204.0,0.88805]
[1642259602267,1.2033985,43205.0,43204.0,0.88805]
[1642259602660,0.53294471,43205.0,43204.0,0.88805]
[1642259602860,0.83294737,43205.0,43204.0,0.88805]
[1642259603600,0.15804071,43205.0,43204.0,0.88805]
[1642259604001,0.72933336,43205.0,43204.0,0.88805]
[1642259604404,0.82933336,43205.0,43204.0,0.88805]
[1642259604808,0.15804071,43205.0,43204.0,0.88805]
[1642259605004,0.8284945,43205.0,43204.0,0.88805]
[1642259605605,0.8284945,43205.0,43204.0,0.84315]
[1642259605806,1.2033985,43205.0,43204.0,0.84315]
[1642259606607,1.1000985,43205.0,43204.0,0.84315]
[1642259606807,0.374904,43205.0,43204.0,0.84315]
[1642259607057,0.66916535,43205.0,43204.0,0.84315]
[1642259607257,0.66916535,43205.0,43204.0,0.77315]
[1642259608056,0.76916535,43205.0,43204.0,0.77315]
[1642259608255,1.14406935,43205.0,43204.0,0.77315]
[1642259608856,0.76916535,43205.0,43204.0,0.77315]
[1642259609256,0.82704635,43205.0,43204.0,0.77315]
[1642259610657,0.82704635,43205.0,43204.0,0.72855]
[1642259613706,1.20195035,43205.0,43204.0,0.72855]
[1642259614559,0.66916535,43205.0,43204.0,0.72855]
[1642259615558,0.00153566,43206.0,43204.0,0.72855]
[1642259615758,0.64916535,43205.0,43204.0,0.72855]
[1642259616157,0.00153566,43206.0,43204.0,0.72855]
[1642259616358,0.64304512,43205.0,43204.0,0.72855]
[1642259618803,0.00153566,43206.0,43204.0,0.72855]
[1642259619003,0.00153566,43206.0,43205.0,1.66123311]
[1642259619302,0.21255326,43206.0,43205.0,1.73893311]
[1642259619502,0.21255326,43206.0,43205.0,1.511674]
[1642259620204,0.00153566,43206.0,43205.0,1.861674]
[1642259620402,0.20650784,43206.0,43205.0,1.511674]
[1642259621302,0.00153566,43206.0,43205.0,1.511674]
[1642259621503,0.20380757,43206.0,43205.0,1.511674]
[1642259621706,0.00153566,43206.0,43205.0,1.511674]
[1642259621906,0.19068581,43206.0,43205.0,1.511674]
[1642259622353,0.00153566,43206.0,43205.0,1.511674]
[1642259622651,0.18766273,43206.0,43205.0,1.511674]
[1642259622850,0.00153566,43206.0,43205.0,1.511674]
[1642259623049,0.17376344,43206.0,43205.0,1.511674]
[1642259623450,0.00153566,43206.0,43205.0,1.511674]
[1642259623650,0.16976046,43206.0,43205.0,1.511674]
[1642259623851,0.00153566,43206.0,43205.0,1.511674]
[1642259624051,0.15533777,43206.0,43205.0,1.511674]
[1642259624251,0.15454725,43206.0,43205.0,1.80867782]
[1642259624452,0.00074514,43206.0,43205.0,1.80867782]
[1642259624651,0.14260174,43206.0,43205.0,1.80867782]
[1642259625150,0.00074514,43206.0,43205.0,1.80867782]
[1642259625352,0.12699513,43206.0,43205.0,1.80867782]
[1642259625805,0.00074514,43206.0,43205.0,1.80867782]
[1642259626003,0.11939593,43206.0,43205.0,1.80867782]
[1642259628610,0.00074514,43206.0,43205.0,1.80867782]
[1642259628811,0.03974171,43206.0,43205.0,1.80867782]
[1642259629869,0.00074514,43206.0,43205.0,1.80867782]